bitfinex-derivatives/quotes_ETHF0:USTF0_20240927
["timestamp","ask_amount","ask_price","bid_price","bid_amount"]
[1727463516900,1.50904,2701.1,2701.0,0.37014]
[1727463517497,0.37014,2701.0,2700.9,0.37014]
[1727463522201,0.37015,2700.9,2700.8,0.76646]
[1727463522397,0.37015,2700.9,2700.8,0.37016]
[1727463523600,0.37015,2701.0,2700.9,0.37014]
[1727463523911,0.37016,2700.9,2700.8,0.37016]
[1727463524600,0.37014,2701.0,2700.9,0.37014]
[1727463529514,0.37014,2701.0,2700.9,1.33894836]
[1727463530014,0.37014,2701.0,2700.9,0.37014]
[1727463530215,0.37014,2701.0,2700.9,1.33894836]
[1727463533126,0.37011,2701.3,2701.2,0.37009]
[1727463533414,1.85056,2701.2,2701.0,0.96880836]
[1727463533611,1.29549,2701.0,2700.9,0.96880836]
[1727463534117,0.37011,2701.3,2701.2,0.3701]
[1727463534314,0.37012,2701.2,2701.1,0.37011]
[1727463534718,0.37012,2701.2,2701.1,1.33924474]
[1727463535020,0.37012,2701.2,2701.1,0.37011]
[1727463535517,1.12972,2701.2,2701.1,0.37011]
[1727463535727,3.2078,2701.6,2701.1,1.33]
[1727463535920,0.37007,2701.5,2701.4,0.37008]
[1727463536115,0.37007,2701.5,2701.4,0.76208]
[1727463537716,0.37006,2701.6,2701.5,0.37006]
[1727463538121,0.37006,2701.6,2701.5,0.37007]
[1727463538816,0.37006,2701.6,2701.4,0.392]
[1727463538817,0.37007,2701.5,2701.4,0.76207]
[1727463539421,0.37007,2701.5,2701.4,0.392]
[1727463539721,0.92515,2701.6,2701.2,4.17693474]
[1727463540020,0.37009,2701.3,2701.2,3.2078]
[1727463540415,1.16069,2701.3,2701.2,3.2078]
[1727463540819,1.16069,2701.3,2701.2,3.57791]
[1727463541120,1.16069,2701.3,2701.2,4.54704474]
[1727463541812,1.16069,2701.3,2701.2,4.17693474]
[1727463542016,1.16069,2701.3,2701.2,4.54704474]
[1727463542217,2.08593,2701.3,2701.2,3.2078]
[1727463542417,0.37014,2701.0,2700.9,0.75684]
[1727463542718,0.37013,2701.1,2701.0,0.37012]
[1727463543227,0.37016,2700.8,2700.7,3.57798]
[1727463543417,0.37016,2700.9,2700.8,0.37015]
[1727463544622,1.30926,2701.0,2700.7,3.57798]
[1727463544623,1.29558,2700.8,2700.7,3.57798]
[1727463544825,2.06928,2700.8,2700.7,3.2078]
[1727463546224,0.37023,2700.3,2700.2,3.96054]
[1727463546521,0.37023,2700.3,2700.2,0.75274]
[1727463546914,1.29582,2700.3,2700.2,0.3825]
[1727463547117,0.7835,2700.3,2700.1,3.2078]
[1727463547319,0.7835,2700.3,2700.2,1.70025]
[1727463547514,0.3863,2700.3,2700.2,1.70025]
[1727463548323,0.3863,2700.3,2700.2,3.26025]
[1727463548627,0.75653,2700.3,2700.2,0.37025]
[1727463549130,0.74563,2700.4,2700.3,0.37023]
[1727463549423,0.74563,2700.4,2700.3,1.36107898]
[1727463550021,0.74563,2700.4,2700.3,2.32958318]
[1727463550218,0.74563,2700.4,2700.3,0.9685042]
[1727463550416,0.74563,2700.4,2700.3,1.3387342]
[1727463551219,0.74563,2700.4,2700.3,2.69677487]
[1727463551929,0.74563,2700.4,2700.3,1.72855648]
[1727463552233,0.74563,2700.4,2700.3,1.33837679]
[1727463553429,0.74563,2700.4,2700.3,2.69633167]
[1727463554631,0.74563,2700.4,2700.3,1.33837679]
[1727463555431,0.3754,2700.4,2700.3,1.33837679]
[1727463556432,0.74562,2700.4,2700.3,1.33837679]
[1727463556824,0.74562,2700.4,2700.3,0.96814679]
[1727463557226,0.74562,2700.4,2700.3,1.33837679]
[1727463557428,0.74562,2700.4,2700.3,0.37023]
[1727463558240,0.37023,2700.3,2700.2,1.33838679]
[1727463558439,0.37025,2700.2,2700.1,4.17594679]
[1727463559131,0.76665,2700.2,2700.1,4.17594679]
[1727463560536,0.76665,2700.2,2700.1,3.2078]
[1727463560940,0.76665,2700.2,2700.1,4.54620679]
[1727463561232,0.76665,2700.2,2700.1,3.57806]
[1727463561635,0.76665,2700.2,2700.1,4.54620679]
[1727463562535,0.3964,2700.2,2700.1,7.43620679]
[1727463562737,0.3754,2700.4,2700.3,0.37023]
[1727463562936,0.7994,2700.5,2700.4,0.37022]
[1727463563236,0.3796,2700.7,2700.6,0.37019]
[1727463563643,3.2078,2700.8,2700.7,0.37018]
[1727463564138,3.57797,2700.8,2700.6,0.37019]
[1727463564638,0.37018,2700.7,2700.6,0.37019]
[1727463564833,3.2078,2700.8,2700.6,0.37019]
[1727463565235,3.57797,2700.8,2700.6,0.37019]
[1727463566542,3.2078,2700.8,2700.6,0.37019]
[1727463566744,3.57797,2700.8,2700.6,0.37019]
[1727463567043,3.57797,2700.8,2700.5,3.65239]
[1727463567933,0.37018,2700.7,2700.5,3.65239]
[1727463568542,0.37018,2700.7,2700.5,2.09239]
[1727463569143,0.37019,2700.6,2700.5,0.3922]
[1727463569445,0.3702,2700.5,2700.4,0.4029]
[1727463569640,1.5484,2700.5,2700.3,0.76373]
[1727463570341,4.13322,2700.8,2700.3,1.7235]
[1727463570541,0.3702,2700.6,2700.5,1.33]
[1727463570744,4.13322,2700.8,2700.5,1.33]
[1727463571241,0.37019,2700.6,2700.5,1.33]
[1727463573542,0.3702,2700.5,2700.4,0.96743862]
[1727463573840,0.3702,2700.5,2700.4,1.33765862]
[1727463573841,0.389,2700.5,2700.4,1.33765862]
[1727463574946,0.389,2700.5,2700.4,2.69474225]
[1727463575241,0.3702,2700.6,2700.4,2.69474225]
[1727463575446,0.3702,2700.6,2700.5,1.33]
[1727463575742,3.2078,2700.8,2700.5,5.0332]
[1727463576042,1.12496,2701.6,2701.4,0.37007]
[1727463576236,0.7549,2701.6,2701.4,1.33]
[1727463576540,1.12496,2701.6,2701.4,1.70007]
[1727463578347,1.12496,2701.6,2701.4,0.37007]
[1727463578541,0.37007,2701.5,2701.3,3.85671701]
[1727463579045,1.12496,2701.6,2701.4,0.37007]
[1727463579439,0.37007,2701.5,2701.4,3.57787]
[1727463579639,1.12496,2701.6,2701.4,3.57787]
[1727463579848,1.12496,2701.6,2701.5,0.37007]
[1727463580148,0.37007,2701.5,2701.4,3.57787]
[1727463581641,0.37007,2701.5,2701.4,0.37007]
[1727463581842,0.37007,2701.5,2701.4,3.57787]
[1727463587255,1.12497,2701.6,2701.5,0.37007]
[1727463588354,0.37007,2701.5,2701.4,3.57787]
[1727463589857,1.12496,2701.6,2701.5,0.37007]
[1727463590653,0.37007,2701.5,2701.4,3.57788]
[1727463593052,1.29525,2701.5,2701.4,3.2078]
[1727463593254,1.29525,2701.5,2701.4,3.57788]
[1727463593760,0.37008,2701.4,2701.3,0.37008]
[1727463594462,0.3701,2701.3,2701.2,0.37009]
[1727463596259,0.37009,2701.4,2701.3,0.37008]
[1727463597263,0.37009,2701.4,2701.3,3.26008]
[1727463599059,0.37008,2701.5,2701.4,0.37007]
[1727463600269,0.37008,2701.5,2701.4,1.70007]
[1727463600472,1.29526,2701.5,2701.4,1.70007]
[1727463601381,0.7549,2701.6,2701.5,0.37007]
[1727463601579,1.12495,2701.6,2701.5,0.37007]
[1727463604771,0.37007,2701.5,2701.4,1.70007]
[1727463604976,0.37007,2701.5,2701.4,0.37007]
[1727463605575,1.29529,2701.4,2701.3,3.57789]
[1727463605873,0.37015,2700.9,2700.8,0.37016]
[1727463606078,0.37016,2700.8,2700.6,1.33]
[1727463606275,0.3659,2700.7,2700.6,4.90799]
[1727463606474,0.3659,2700.7,2700.6,1.70019]
[1727463606680,0.3659,2700.7,2700.6,4.90799]
[1727463606869,0.4041,2700.8,2700.7,1.29563]
[1727463607067,1.11103,2701.1,2701.0,0.37014]
[1727463607273,1.11103,2701.1,2701.0,1.70014]
[1727463607474,0.73603,2701.1,2701.0,5.40254]
[1727463608181,0.73603,2701.1,2701.0,1.70014]
[1727463611185,0.4048,2701.2,2701.1,0.37012]
[1727463611380,0.77559,2701.4,2701.3,0.37009]
[1727463611579,1.16149,2701.4,2701.3,1.70009]
[1727463612178,0.37009,2701.3,2701.2,3.5779]
[1727463612388,0.37009,2701.3,2701.2,3.57791]
[1727463612779,0.37009,2701.3,2701.2,3.2078]
[1727463612979,0.37009,2701.3,2701.2,3.57791]
[1727463614176,0.37009,2701.3,2701.2,4.90791]
[1727463615990,1.16149,2701.4,2701.3,0.37009]
[1727463616692,0.37009,2701.3,2701.2,5.87461701]
[1727463617686,0.37009,2701.3,2701.2,7.2328622]
[1727463617987,0.37009,2701.3,2701.2,5.87461701]
[1727463618183,0.7914,2701.4,2701.3,0.37009]
[1727463618389,0.37004,2701.7,2701.6,0.37005]
[1727463618586,3.2078,2702.3,2701.6,5.0316]
[1727463618892,0.3667,2702.1,2702.0,0.37]
[1727463619093,0.73669,2702.1,2702.0,1.7]
[1727463619388,1.295,2702.0,2701.9,0.96772792]
[1727463619582,1.295,2702.0,2701.8,0.96772792]
[1727463619583,0.37001,2701.9,2701.8,0.96772792]
[1727463619784,0.37003,2701.8,2701.7,0.96772792]
[1727463620086,0.3944,2701.8,2701.7,2.66830217]
[1727463620289,0.3667,2702.1,2701.7,7.84041758]
[1727463620488,0.7518,2702.1,2702.0,2.66828977]
[1727463620888,1.12179,2702.1,2702.0,2.29828977]
[1727463621291,1.12179,2702.1,2702.0,0.96828977]
[1727463622388,0.7518,2702.1,2701.9,2.66829977]
[1727463622594,1.12179,2702.1,2702.0,0.96828977]
[1727463623190,1.12179,2702.1,2701.9,2.66829977]
[1727463623388,1.1218,2702.1,2701.9,2.29828977]
[1727463623593,1.1218,2702.1,2701.9,2.66829977]
[1727463623789,0.7518,2702.1,2701.9,0.96828977]
[1727463624096,0.37,2702.0,2701.9,0.96828977]
[1727463624396,0.37,2702.0,2701.9,1.33829977]
[1727463624592,0.37,2702.0,2701.8,2.29828977]
[1727463624798,0.37001,2701.9,2701.8,0.96828977]
[1727463624993,0.7518,2702.1,2701.8,2.66830977]
[1727463625185,0.37001,2702.0,2701.9,0.37001]
[1727463625390,0.37001,2702.0,2701.8,2.66830977]
[1727463625587,1.1218,2702.1,2701.9,1.70001]
[1727463625799,0.37,2702.1,2701.9,1.7]
[1727463626000,0.37,2702.1,2701.9,2.0659]
[1727463626899,0.37,2702.1,2702.0,0.37]
[1727463627491,0.37,2702.1,2701.9,2.0659]
[1727463628101,0.37,2702.1,2702.0,0.37]
[1727463629299,0.7766,2702.2,2702.1,0.36999]
[1727463629499,0.7766,2702.2,2702.1,1.69999]
[1727463631006,1.14657,2702.2,2702.1,1.69999]
[1727463631203,0.7766,2702.2,2702.1,1.69999]
[1727463631804,1.14657,2702.2,2702.1,1.33]
[1727463632405,0.36999,2702.1,2702.0,2.10129]
[1727463632908,0.7766,2702.2,2702.0,2.10129]
[1727463633303,1.14658,2702.2,2702.0,2.10129]
[1727463633501,0.36999,2702.1,2702.0,2.10129]
[1727463634603,0.3862,2702.2,2702.0,5.4321]
[1727463634805,0.75617,2702.2,2702.1,4.07079]
[1727463635007,0.3944,2702.4,2702.1,4.07079]
[1727463635008,0.36995,2702.4,2702.3,0.36995]
[1727463635202,0.36995,2702.4,2702.3,1.69995]
[1727463635602,0.36995,2702.4,2702.3,1.33]
[1727463635812,0.75743,2702.5,2702.4,0.36994]
[1727463636513,0.36994,2702.4,2702.3,1.69995]
[1727463636707,0.36994,2702.4,2702.3,1.33]
[1727463638011,0.36994,2702.4,2702.3,1.69996]
[1727463640617,0.3875,2702.5,2702.4,0.36994]
[1727463640618,0.75744,2702.5,2702.4,0.36994]
[1727463640807,0.75743,2702.5,2702.4,0.36994]
[1727463641206,0.36994,2702.4,2702.3,1.69995]
[1727463644616,0.36994,2702.4,2702.3,1.33]
[1727463646020,0.75744,2702.5,2702.4,0.36994]
[1727463647217,0.36994,2702.4,2702.3,2.10145]
[1727463648221,0.75744,2702.5,2702.4,0.36994]
[1727463648719,0.36994,2702.5,2702.4,4.06994]
[1727463649020,0.36994,2702.5,2702.4,4.44074]
[1727463649217,0.36994,2702.5,2702.4,0.74074]
[1727463650819,0.36994,2702.5,2702.4,0.3708]
[1727463651023,0.36994,2702.5,2702.4,0.36994]
[1727463653513,0.75443,2702.6,2702.5,0.36993]
[1727463653720,0.75443,2702.6,2702.5,1.69993]
[1727463653918,0.3845,2702.6,2702.5,1.69993]
[1727463654223,7.3358,2703.1,2702.5,5.03]
[1727463654422,0.086,2703.8,2702.5,5.03]
[1727463654423,0.3898,2703.3,2702.9,0.9247]
[1727463654724,0.36982,2703.3,2703.2,1.33]
[1727463655524,0.36982,2703.4,2703.2,1.69983]
[1727463655714,0.36981,2703.4,2703.3,1.33]
[1727463656222,0.7704,2703.5,2703.3,1.33]
[1727463656526,0.36981,2703.4,2703.3,1.33]
[1727463660034,1.1402,2703.5,2703.3,1.33]
[1727463660331,0.36981,2703.4,2703.3,1.33]
[1727463660825,0.36981,2703.4,2703.2,1.69983]
[1727463661220,1.33,2703.4,2703.1,3.2078]
[1727463661425,0.36983,2703.3,2703.1,3.57765]
[1727463661629,0.36983,2703.3,2703.1,4.90765]
[1727463661823,1.33,2703.4,2703.1,4.5378]
[1727463662023,0.36983,2703.3,2703.1,4.90765]
[1727463662218,0.36983,2703.2,2703.1,3.2078]
[1727463663143,1.29442,2703.2,2703.1,3.2078]
[1727463664021,1.29442,2703.2,2702.5,0.96828977]
[1727463664022,0.36989,2702.8,2702.5,3.2078]
[1727463664225,0.786,2702.7,2702.6,1.69992]
[1727463664935,1.1611,2702.7,2702.6,1.69992]
[1727463669438,1.531,2702.7,2702.6,1.69992]
[1727463669632,1.1611,2702.7,2702.6,0.36992]
[1727463670132,1.1611,2702.7,2702.6,1.69992]
[1727463670943,1.531,2702.7,2702.6,1.69992]
[1727463671439,1.531,2702.7,2702.6,1.33]
[1727463671644,1.531,2702.7,2702.6,1.69992]
[1727463672934,1.531,2702.7,2702.6,1.33]
[1727463674026,0.7581,2702.7,2702.6,1.69992]
[1727463675243,0.7581,2702.7,2702.6,2.62472]
[1727463675440,0.7581,2702.7,2702.6,1.69992]
[1727463675941,0.36986,2703.0,2702.7,0.92476]
[1727463676243,0.74616,2703.0,2702.9,1.33]
[1727463676440,0.3763,2703.0,2702.9,0.36988]
[1727463676736,0.36992,2702.6,2702.5,3.57772]
[1727463676935,0.36992,2702.6,2702.5,3.2078]
[1727463677438,1.12192,2702.6,2702.5,3.2078]
[1727463678642,0.752,2702.6,2702.5,3.57773]
[1727463679436,0.36986,2703.0,2702.9,0.36988]
[1727463679833,1.14686,2703.1,2703.0,0.36986]
[1727463680045,0.777,2703.1,2703.0,0.36986]
[1727463680747,1.54856,2703.1,2702.9,2.89]
[1727463680944,1.1787,2703.1,2703.0,0.36986]
[1727463682537,3.2078,2703.5,2702.9,3.2948]
[1727463682734,3.2078,2703.5,2703.3,0.36981]
[1727463682735,1.14381,2703.4,2703.3,0.36981]
[1727463683141,4.84301,2703.4,2703.3,0.36981]
[1727463683342,0.36983,2703.3,2703.2,0.36983]
[1727463683541,4.4732,2703.4,2703.0,0.3952]
[1727463683542,1.14382,2703.4,2703.3,0.36982]
[1727463684148,0.36983,2703.3,2703.1,3.2078]
[1727463684347,1.14381,2703.4,2703.1,3.2078]
[1727463684553,1.14381,2703.4,2703.3,0.36982]
[1727463687345,0.36983,2703.3,2703.2,0.36983]
[1727463687653,1.14381,2703.4,2703.3,0.36982]
[1727463688749,0.36982,2703.3,2703.2,3.57763]
[1727463688955,1.14382,2703.4,2703.3,0.36982]
[1727463691152,0.774,2703.4,2703.3,0.36982]
[1727463691560,1.14381,2703.4,2703.3,0.36982]
[1727463691856,0.774,2703.4,2703.3,0.36982]
[1727463692241,0.774,2703.4,2703.3,3.25982]
[1727463692855,0.36982,2703.3,2703.2,3.57763]
[1727463693055,0.77151,2703.4,2703.3,0.36982]
[1727463693250,0.4017,2703.4,2703.3,3.25982]
[1727463693459,0.77151,2703.4,2703.3,4.05592]
[1727463693754,0.7812,2703.4,2703.3,4.05592]
[1727463695056,0.36973,2704.0,2703.8,0.36975]
[1727463695256,0.3895,2703.9,2703.8,3.25975]
[1727463695557,0.75925,2703.9,2703.8,2.89]
[1727463695951,0.75925,2703.9,2703.8,3.25975]
[1727463696153,0.36972,2704.1,2703.8,2.89]
[1727463696350,0.36972,2704.1,2703.8,3.25975]
[1727463696351,0.3979,2703.9,2703.8,3.25975]
[1727463696555,0.3979,2703.9,2703.8,4.02895]
[1727463696853,0.3979,2703.9,2703.8,4.95334]
[1727463697054,3.2078,2704.7,2703.9,0.36974]
[1727463697251,0.3928,2704.3,2704.2,0.36968]
[1727463697450,0.76248,2704.3,2704.2,0.36968]
[1727463697851,4.46008,2704.3,2704.2,0.36968]
[1727463698050,0.3697,2704.2,2704.1,3.5775]
[1727463698451,0.7625,2704.3,2704.2,0.3697]
[1727463699048,0.3928,2704.3,2704.2,0.3697]
[1727463699656,0.3928,2704.3,2704.2,3.2597]
[1727463700052,0.7372,2704.5,2704.4,0.36967]
[1727463700247,0.7372,2704.5,2704.4,6.46747]
[1727463700462,0.3664,2704.5,2704.4,6.46747]
[1727463700665,0.73623,2704.7,2704.6,0.36964]
[1727463701461,0.3666,2704.7,2704.6,0.36964]
[1727463702057,0.3666,2704.7,2704.5,0.36965]
[1727463702363,0.36966,2704.5,2704.4,3.2078]
[1727463702551,1.29381,2704.5,2704.4,3.2078]
[1727463702749,4.99141,2704.5,2704.4,3.2078]
[1727463702952,5.39501,2704.5,2704.4,3.2078]
[1727463705952,1.69741,2704.5,2704.4,3.2078]
[1727463706149,0.77326,2704.5,2704.4,3.57747]
[1727463707759,0.77326,2704.5,2704.4,3.2078]
[1727463707958,0.77326,2704.5,2704.4,3.57747]
[1727463709051,0.77326,2704.5,2704.4,3.2078]
[1727463709257,0.77326,2704.5,2704.4,3.57747]
[1727463709661,0.77326,2704.5,2704.4,3.2078]
[1727463710058,1.69741,2704.5,2704.4,3.2078]
[1727463714167,1.32775,2704.5,2704.1,3.5775]
[1727463714366,0.3697,2704.2,2704.1,3.2078]
[1727463714665,0.3697,2704.2,2704.1,3.57751]
[1727463714868,0.7694,2704.2,2704.1,3.57751]
[1727463715061,0.7694,2704.2,2703.5,3.2078]
[1727463715062,0.36979,2703.6,2703.5,3.2078]
[1727463715266,0.36979,2703.6,2703.5,3.57759]
[1727463715977,1.1878,2703.7,2703.6,0.36978]
[1727463715978,1.55757,2703.7,2703.6,0.36978]
[1727463716468,1.1878,2703.7,2703.6,0.36978]
[1727463716972,0.36976,2703.8,2703.7,0.36977]
[1727463717160,0.36976,2703.8,2703.7,3.25977]
[1727463718965,0.36976,2703.8,2703.7,2.89]
[1727463719371,0.36976,2703.8,2703.7,3.25977]
[1727463721371,0.36976,2703.8,2703.7,2.89]
[1727463722067,0.36976,2703.8,2703.7,3.25977]
[1727463722970,0.3809,2703.9,2703.7,2.89]
[1727463723178,0.75065,2703.9,2703.8,0.36975]
[1727463723761,0.3809,2703.9,2703.8,0.77495]
[1727463723962,0.3896,2704.1,2704.0,0.36973]
[1727463724367,0.4008,2704.3,2704.2,0.3697]
[1727463724663,0.77049,2704.3,2704.2,0.3697]
[1727463726567,0.4008,2704.3,2704.2,3.2597]
[1727463726769,0.77048,2704.3,2704.2,3.2597]
[1727463727869,0.4008,2704.3,2704.2,3.2597]
[1727463728070,0.77048,2704.3,2704.2,3.2597]
[1727463728875,0.4008,2704.3,2704.2,3.2597]
[1727463729981,0.4008,2704.3,2704.2,3.6345]
[1727463730366,3.57747,2704.5,2704.4,0.36967]
[1727463731075,0.372,2704.6,2704.5,0.36966]
[1727463731272,0.92395,2705.1,2704.5,0.36966]
[1727463731273,7.54719035,2705.2,2704.8,0.36962]
[1727463731580,7.54719035,2705.2,2704.9,3.25959]
[1727463731581,0.36959,2705.0,2704.9,3.25959]
[1727463732672,0.36959,2705.0,2704.9,3.2596]
[1727463733673,0.36959,2705.0,2704.9,0.3696]
[1727463735674,0.36959,2705.0,2704.7,3.2078]
[1727463735675,0.36962,2704.8,2704.7,3.2078]
[1727463735874,0.36962,2704.8,2704.4,3.57746]
[1727463735875,0.36966,2704.5,2704.4,3.57746]
[1727463736180,0.36966,2704.5,2704.4,3.2078]
[1727463736377,0.36966,2704.5,2704.4,3.57747]
[1727463738189,0.36965,2704.6,2704.5,0.36965]
[1727463739082,0.36966,2704.5,2704.4,3.57746]
[1727463740984,0.36965,2704.6,2704.5,0.36966]
[1727463742681,0.36966,2704.5,2704.4,3.57746]
[1727463743188,0.36965,2704.6,2704.5,0.36965]
[1727463743383,0.36966,2704.5,2704.4,3.57746]
[1727463743989,0.36965,2704.6,2704.5,0.36965]
[1727463744579,0.36966,2704.5,2704.4,3.57746]
[1727463745078,0.36965,2704.6,2704.5,0.36965]
[1727463745283,0.36965,2704.6,2704.5,3.25965]
[1727463746392,1.51504,2704.7,2704.6,0.36964]
[1727463746788,1.51504,2704.7,2704.6,3.25964]
[1727463748594,1.51504,2704.7,2704.6,2.89]
[1727463749498,2.43912,2704.7,2704.6,2.89]
[1727463749796,0.36966,2704.5,2704.4,6.46746]
[1727463750901,0.36966,2704.5,2704.4,6.0978]
[1727463751096,1.29381,2704.5,2704.4,3.2078]
[1727463751505,1.29381,2704.5,2704.4,6.0978]
[1727463751698,0.36966,2704.5,2704.4,6.46747]
[1727463752390,0.36966,2704.5,2704.4,6.46746]
[1727463752590,0.36965,2704.6,2704.5,0.36964]
[1727463752793,1.1454,2704.7,2704.6,0.36964]
[1727463752794,1.51504,2704.7,2704.6,0.36964]
[1727463755100,0.36964,2704.6,2704.5,3.25965]
[1727463755299,0.36966,2704.5,2704.4,3.57747]
[1727463755502,0.92412,2704.6,2704.4,3.57747]
[1727463755697,0.36966,2704.5,2704.4,3.57747]
[1727463756102,1.29381,2704.5,2704.4,3.2078]
[1727463756900,0.36967,2704.4,2704.3,1.33]
[1727463757106,1.29385,2704.4,2704.3,1.33]
[1727463757908,0.36967,2704.4,2704.3,1.69968]
[1727463758307,0.36967,2704.4,2704.3,0.36968]
[1727463760109,0.36966,2704.5,2704.4,0.36965]
[1727463764603,0.36965,2704.6,2704.5,0.36964]
[1727463766320,0.36967,2704.5,2704.4,0.36966]
[1727463766618,0.36966,2704.6,2704.5,0.36965]
[1727463767007,0.36967,2704.5,2704.4,0.36966]
[1727463767407,0.36967,2704.5,2704.4,1.33544584]
[1727463767612,0.36967,2704.5,2704.4,1.33267604]
[1727463768718,0.36967,2704.5,2704.4,1.71823371]
[1727463768917,0.36967,2704.5,2704.4,2.68156719]
[1727463769319,0.36965,2704.6,2704.5,0.36965]
[1727463769520,0.36965,2704.6,2704.5,1.33330322]
[1727463770123,0.36965,2704.6,2704.5,2.68323378]
[1727463770420,0.36965,2704.6,2704.5,1.33330322]
[1727463770618,0.36965,2704.6,2704.5,1.33775322]
[1727463770814,0.36965,2704.6,2704.5,2.68787211]
[1727463771216,0.36965,2704.6,2704.5,3.05753211]
[1727463771719,0.36965,2704.6,2704.5,2.68343211]
[1727463772109,0.36965,2704.6,2704.5,1.71977889]
[1727463773420,0.36966,2704.5,2704.4,1.82210466]
[1727463773725,0.36966,2704.5,2704.4,3.17339605]
[1727463774414,0.36966,2704.5,2704.4,0.36967]
[1727463780322,0.36966,2704.5,2704.4,1.69967]
[1727463780529,0.36965,2704.6,2704.5,0.36964]
[1727463781423,0.36966,2704.5,2704.4,1.69966]
[1727463781613,0.36966,2704.5,2704.4,0.36966]
[1727463782221,0.7538,2704.7,2704.6,0.36964]
[1727463782527,0.7538,2704.7,2704.6,3.0503174]
[1727463782828,0.3855,2705.1,2704.6,7.31577003]
[1727463783126,1.13979,2705.0,2704.9,1.33451861]
[1727463784326,1.13979,2705.0,2704.9,0.96492861]
[1727463784719,1.13979,2705.0,2704.9,2.68481992]
[1727463786029,1.13979,2705.0,2704.9,0.96492861]
[1727463786535,1.13979,2705.0,2704.9,1.33452861]
[1727463787933,1.13979,2705.0,2704.9,1.71891634]
[1727463788234,1.13979,2705.0,2704.9,1.33329061]
[1727463789439,1.13979,2705.0,2704.9,0.3696]
[1727463789734,0.3696,2704.9,2704.8,0.76451]
[1727463790140,0.3696,2704.9,2704.8,0.36961]
[1727463791133,1.1398,2705.0,2704.9,0.3696]
[1727463791335,0.36961,2704.9,2704.8,0.36961]
[1727463791633,1.1398,2705.0,2704.9,0.3696]
[1727463792431,0.36961,2704.9,2704.8,0.36961]
[1727463792732,0.36961,2704.9,2704.8,0.3696]
[1727463793129,1.1398,2705.0,2704.9,0.3696]
[1727463793332,0.7702,2705.0,2704.9,0.3696]
[1727463793639,0.3714,2705.0,2704.9,1.29361]
[1727463793934,0.3714,2705.0,2704.9,0.3696]
[1727463796540,0.3714,2705.0,2704.9,3.16478327]
[1727463796835,0.3714,2705.0,2704.9,3.16478081]
[1727463797231,0.3714,2705.0,2704.9,1.71738789]
[1727463797942,0.3714,2705.0,2704.9,6.86158081]
[1727463798126,0.3714,2705.0,2704.9,5.41418789]
[1727463798332,0.3714,2705.0,2704.9,1.71738789]
[1727463798532,0.3714,2705.0,2704.9,5.41418789]
[1727463798731,0.3714,2705.0,2704.9,6.37661701]
[1727463799031,0.3714,2705.0,2704.9,5.41418789]
[1727463799339,0.3714,2705.0,2704.9,6.37651607]
[1727463799541,0.3714,2705.0,2704.9,6.86158081]
[1727463799735,0.3714,2705.0,2704.9,7.78559081]
[1727463799931,0.3773,2705.2,2705.1,0.36957]
[1727463800130,0.3773,2705.2,2705.1,5.86923791]
[1727463801337,0.74686,2705.2,2705.1,5.86923791]
[1727463803141,0.3773,2705.2,2705.1,5.86923791]
[1727463803934,0.3773,2705.2,2705.1,2.66143791]
[1727463804243,0.3773,2705.2,2705.1,5.86923791]
[1727463804440,0.3773,2705.2,2705.1,4.90737]
[1727463804831,0.3773,2705.2,2705.1,5.86923791]
[1727463807736,0.3773,2705.2,2705.1,4.90737]
[1727463807937,0.3925,2705.4,2705.3,0.36955]
[1727463808142,0.3925,2705.4,2705.3,1.69955]
[1727463808746,3.2078,2706.1,2705.3,11.026]
[1727463808939,1.11407,2705.9,2705.7,0.36948]
[1727463809142,0.7446,2705.9,2705.8,1.69948]
[1727463809342,0.92339,2706.8,2706.0,0.36945]
[1727463809545,4.128,2706.9,2705.8,2.67423934]
[1727463809546,0.36943,2706.2,2705.9,0.961054]
[1727463809845,1.33,2706.0,2705.5,0.961054]
[1727463810040,0.36954,2705.4,2705.2,3.2078]
[1727463810241,2.81455,2705.3,2705.2,3.2078]
[1727463810442,2.81455,2705.3,2704.8,4.5378]
[1727463810443,0.36956,2705.2,2704.8,4.5378]
[1727463810646,2.445,2705.3,2704.8,4.5378]
[1727463810850,2.81456,2705.3,2704.8,4.5378]
[1727463811052,1.115,2705.3,2704.8,4.90741]
[1727463811254,1.48455,2705.3,2705.0,1.33]
[1727463811447,1.115,2705.3,2705.0,1.33]
[1727463813952,1.115,2705.3,2704.6,1.335854]
[1727463813953,1.33,2705.1,2704.6,1.335854]
[1727463814256,1.115,2705.3,2704.5,4.9134]
[1727463814257,1.33,2704.9,2704.5,4.9134]
[1727463814446,0.762,2704.8,2704.5,4.9134]
[1727463814647,3.2078,2705.2,2704.6,1.33]
[1727463814942,3.2078,2705.2,2705.1,1.33]
[1727463815245,1.33,2705.7,2705.1,1.69957]
[1727463815246,0.7808,2705.4,2705.1,1.69957]
[1727463815446,0.7808,2705.4,2705.3,1.33]
[1727463816750,0.7808,2705.4,2705.2,2.0898]
[1727463817459,0.7808,2705.4,2705.3,1.69955]
[1727463817859,0.3888,2705.4,2705.3,1.69955]
[1727463818254,0.3888,2705.4,2705.3,0.36955]
[1727463818851,0.7957,2705.7,2705.2,3.6398]
[1727463819159,0.3763,2706.0,2705.6,2.88]
[1727463819352,0.743,2706.0,2705.6,2.88]
[1727463819558,0.743,2706.0,2705.9,0.36947]
[1727463820256,0.3763,2706.0,2705.9,3.24947]